Cogmind - Beta 17.1 @@@ ROGUE MODE // 2026.09.07 @ 17:31:26 Player: teag2 Result: Destroyed by OG-3CK(R) with Subdweller Laser Performance ------------- Evolutions (0) 0 Regions Visited (2) 400 Robots Destroyed (24) 120 Value Destroyed (502) 502 Prototype IDs (2) 40 Alien Tech Used (0) 0 Bonus (-9) -9 TOTAL SCORE: 1053 Bonus ------- Friendly Fire -9 Cogmind --------- Core Integrity 0/250 Matter 231/300 Energy 26/265 System Corruption 1% Temperature Cool (6) Movement Treading (240) Ox1 Location -10/Subcaves Parts ------- > --- POWER (1) -------- Improved Ion Engine > --- PROPULSION (2) --- Light Treads > --- UTILITY (2) ------ Medium Storage Unit Shield Generator > --- WEAPON (2) ------- Shotgun > --- INVENTORY (10) --- Improved Ion Engine Improved Ion Engine Light Nuclear Core Light Treads Compact Wheel Compact Wheel Improved Heat Sink Shotgun Shotgun Peak State ------------ > --- POWER ------------ Improved Ion Engine > --- PROPULSION ------- Light Treads Light Treads > --- UTILITY ---------- Improved Heat Sink Medium Storage Unit > --- WEAPON ----------- Shotgun Shotgun > --- INVENTORY -------- Light Nuclear Core Light Treads Compact Wheel Compact Wheel Medium Laser Small Laser Assault Rifle Shotgun Shotgun [Rating: 13] Favorites ----------- Power Ion Engine Engine Ion Engine Propulsion Aluminum Leg Treads Light Treads Leg Aluminum Leg Wheel Compact Wheel Utility Improved Heat Sink Device Improved Heat Sink Storage Small Storage Unit Weapon Medium Laser Energy Gun Medium Laser Ballistic Gun Assault Rifle Build | -11 -10 -10 ------- Run | Yrd Mat Sub Slots Evolved . | . . . Power . | . . . Propulsion . | . . . Utility . | . . . Weapon . | . . . Parts Attached 15 | . 13 2 Power 2 | . 2 . Engine 2 | . 2 . Core . | . . . Reactor . | . . . Propulsion 4 | . 4 . Treads 2 | . 2 . Leg . | . . . Wheel 2 | . 2 . Hover . | . . . Flight . | . . . Utility 5 | . 3 2 Device 4 | . 2 2 Storage 1 | . 1 . Processor . | . . . Hackware . | . . . Protection . | . . . Artifact . | . . . Weapon 4 | . 4 . Energy Gun 1 | . 1 . Energy Cannon . | . . . Ballistic Gun 3 | . 3 . Ballistic Cannon . | . . . Launcher . | . . . Special Weapon . | . . . Impact Weapon . | . . . Slashing Weapon . | . . . Piercing Weapon . | . . . Special Melee Weapon . | . . . Unidentified Prototypes . | . . . Parts Lost 3 | . . 3 Power . | . . . Propulsion 1 | . . 1 Utility 1 | . . 1 Weapon 1 | . . 1 Highest Loss Streak 3 | . . 3 To Critical Strikes . | . . . Average Backups 7 | . 7 9 Power 1 | . 1 3 Propulsion 4 | . 4 3 Utility . | . . 1 Weapon 1 | . 1 2 Tool/Special . | . . . Unused Backups 17 | . 12 5 Power 5 | . 2 3 Propulsion 4 | . 4 . Utility 2 | . 2 . Weapon 6 | . 4 2 Tool/Special . | . . . Average Slot Usage (%) 98 | . 98 95 Engine 14 | . 14 14 Treads 8 | . 8 26 Leg 18 | . 18 . Device 13 | . 12 14 Storage 14 | . 14 14 Energy Gun 9 | . 10 . Ballistic Gun 18 | . 17 26 Peak Build Rating 13 | . 13 13 Average Rating 9 | . 9 12 On Entrance 8 | 6 6 13 Avg Prop Armor Cover (%) . | . . . Naked Turns . | . . . Heaviest Build 25 | 11 24 25 Greatest Support 40 | 20 40 40 Greatest Overweight (x) . | . . . Average Overweight (x) . | . . . Largest Inventory Capacity 10 | . 10 10 Average Capacity 8 | . 8 10 Most Carried 10 | . 10 10 Average Carried 7 | . 7 9 Final Capacity 10 | 8 10 10 Final Carried 10 | 6 10 9 Class Distribution -------------------- 100% | Mutant Dominant Class ---------------- Mutant | -10/Materials Mutant | -10/Subcaves Resources | -11 -10 -10 ----------- Run | Yrd Mat Sub Matter Collected 555 | 200 355 . Remotely . | . . . Salvage Created 701 | . 666 35 Parts 50 | . 48 2 Haulers Intercepted 2 | . 2 . Recyclers Shooed . | . . . Parts Field Recycled . | . . . Retrieved Matter . | . . . Parts Self-Destructed . | . . . Prevented . | . . . Parts Restored . | . . . Kills | -11 -10 -10 ------- Run | Yrd Mat Sub Combat Hostiles Destroyed 16 | . 15 1 Guns 16 | . 15 1 Classes Destroyed 7 | . 6 1 Worker 2 | . 2 . Hauler 2 | . 2 . Operator 1 | . 1 . Watcher 3 | . 3 . Swarmer 6 | . 6 . Grunt 9 | . 9 . Subdweller 1 | . . 1 Best Kill Streak 4 | . 4 1 Combat Bots Only 4 | . 4 1 Max Kills in Single Turn 2 | . 2 1 Gunslinging . | . . . Exploded . | . . . Melee . | . . . Uniques/NPCs Destroyed . | . . . Combat | -11 -10 -10 -------- Run | Yrd Mat Sub Hostile Shots Fired 117 | . 66 51 Missed 34 | . 11 23 Hits 83 | . 55 28 Projectile 83 | . 55 28 Critical Strikes 1 | . . 1 Damage Taken 1056 | . 541 515 Core 264 | . 125 139 Absorbed by Shields 100 | . . 100 Core Remaining (%) 100 | 100 . . Volleys Fired 79 | . 70 9 Largest 2 | . 2 2 Hottest 70 | . 70 46 Shots Fired 147 | . 131 16 Gun 147 | . 131 16 Cannon . | . . . Launcher . | . . . Special . | . . . Kinetic 90 | . 74 16 Thermal 57 | . 57 . Explosive . | . . . Electromagnetic . | . . . Robot Hit Streak 16 | . 16 13 Robot Miss Streak 6 | . 6 2 Penetration Max . | . . . Secondary Targets 2 | . 2 . Max Gunslinging Chain 1 | . 1 . Shots Hit Robots 91 | . 76 15 Core Hits 43 | . 39 4 Critical Kills . | . . . Critical Parts Destroyed . | . . . Critical Strikes 2 | . 2 . Burn 2 | . 2 . Melee Attacks . | . . . Impact . | . . . Slashing . | . . . Piercing . | . . . Sneak Attacks . | . . . Combat Hostiles . | . . . Follow-up Attacks . | . . . Damage Inflicted 1289 | . 1012 277 Guns 1234 | . 957 277 Cannons . | . . . Explosions . | . . . Melee . | . . . Ramming 55 | . 55 . Kinetic 808 | . 531 277 Thermal 426 | . 426 . Explosive . | . . . Electromagnetic . | . . . Impact . | . . . Slashing . | . . . Piercing . | . . . Highest Corruption 1 | . 1 1 Average Corruption 1 | . 1 1 Corruption Purged . | . . . Corruption Blocked . | . . . Effects 7 | . 6 1 Message Errors 2 | . 2 . Matter Fused 1 | . 1 . Heat Flow Errors 1 | . 1 . Data Loss (minor) 3 | . 2 1 Overload Shots . | . . . Overflow Damage . | . . . Projectiles . | . . . Explosions . | . . . Melee . | . . . Knockbacks 1 | . 1 . Impact 1 | . 1 . Kinetic . | . . . Secondary . | . . . Self-Inflicted Damage . | . . . Shots . | . . . Rammed 2 | . 2 . Targets Rammed 8 | . 8 . Kicked 5 | . 5 . Crushed 1 | . 1 . Highest Temperature 252 | . 252 . Average Temperature 76 | . 76 . Received Heat Transfer 267 | . 174 93 Siege Activations . | . . . Martial Activations . | . . . Shielding Activations . | . . . Robots Disrupted . | . . . Combat Hostiles . | . . . Robots Corrupted . | . . . Combat Hostiles . | . . . Parts Fried . | . . . Impact Corruptions . | . . . Robots Melted . | . . . Combat Hostiles . | . . . Parts Melted . | . . . Heat Transferred 1406 | . 1406 . Parts Sabotaged . | . . . Parts Stolen . | . . . Parts Stripped . | . . . Power Chain Reactions . | . . . Alert | -11 -10 -10 ------- Run | Yrd Mat Sub Maximum Alert Level . | . . . Low Security (%) 100 | . 100 . Level 1 . | . . . Level 2 . | . . . Level 3 . | . . . Level 4 . | . . . Level 5 . | . . . High Security . | . . . Max Security . | . . . Peak Influence 100 | . 100 . Initial . | . . . Average 39 | . 39 . Influence Increases 509 | . 509 . Destroy 0b10 Robot/C 300 | . 300 . Destroy 0b10 Robot/NC 40 | . 40 . Destroy Leader 80 | . 80 . Successful Hack 11 | . 11 . Select Force Hacks 60 | . 60 . Destroy Structure 3 | . 3 . Lose Combat Pursuer 15 | . 15 . Influence Decreases 509 | . 482 27 Entered New Map 14 | . . 14 Time Decay 485 | . 482 3 Lost Ally 10 | . . 10 Squads Dispatched 3 | . 3 . Investigation 2 | . 2 . Extermination . | . . . Reinforcement 1 | . 1 . Assault . | . . . Garrison . | . . . Intercept . | . . . Searches Triggered . | . . . Construction Impeded . | . . . Haulers Reinforced . | . . . Active Scanning Responses . | . . . Cargo Convoy Interrupts . | . . . Stealth | -11 -10 -10 --------- Run | Yrd Mat Sub Distress Signals . | . . . Communications Jammed . | . . . Distress Signals . | . . . Times Spotted 29 | . 24 5 Peak Tracking Total 5 | . 5 4 Tactical Retreats 1 | . 1 . Traps | -11 -10 -10 ------- Run | Yrd Mat Sub Traps Triggered 1 | . 1 . Indirectly . | . . . Trap Hack Attempts . | . . . Triggered . | . . . Disarmed . | . . . Reprogrammed . | . . . Reused . | . . . Traps Extracted . | . . . Installed . | . . . Triggered . | . . . Machines | -11 -10 -10 ---------- Run | Yrd Mat Sub Machines Disabled . | . . . Max in Single Turn . | . . . Machines Repaired . | . . . Machines Dismantled . | . . . Machines Sabotaged . | . . . Overloaded Fab Kills . | . . . Hacking | -11 -10 -10 --------- Run | Yrd Mat Sub Machines Accessed 8 | . 8 . Terminals 6 | . 6 . Fabricators . | . . . Repair Stations . | . . . Recycling Units 2 | . 2 . Scanalyzers . | . . . Garrison Access . | . . . Total Hacks 24 | . 24 . Successful 16 | . 16 . Failed 7 | . 7 . Catastrophic . | . . . Database Lockouts 1 | . 1 . Manual 17 | . 17 . Terminals 19 | . 19 . Fabricators . | . . . Repair Stations . | . . . Recycling Units 5 | . 5 . Scanalyzers . | . . . Garrison Access . | . . . Terminal Hacks 3 | . 3 . Prototype ID Bank 1 | . 1 . Terminal Index 1 | . 1 . Locate Traps 1 | . 1 . Fabricator Hacks . | . . . Repair Station Hacks . | . . . Recycling Unit Hacks 2 | . 2 . Retrieve Components 2 | . 2 . Scanalyzer . | . . . Garrison Access Hacks . | . . . Unauthorized Hacks 11 | . 11 . Terminals 9 | . 9 . Assimilate 2 | . 2 . Botnet 1 | . 1 . Operators 1 | . 1 . Skim 5 | . 5 . Fabricators . | . . . Repair Stations . | . . . Recycling Units 2 | . 2 . Tunnel 2 | . 2 . Scanalyzers . | . . . Garrison Access . | . . . Data Cores Recovered . | . . . Used . | . . . Hacking Detections 5 | . 5 . Full Trace Events . | . . . Feedback Events . | . . . Feedback Blocked . | . . . Robot Schematics Acquired . | . . . Robots Built . | . . . Authchips . | . . . Time . | . . . Total Robot Build Rating . | . . . Part Schematics Acquired . | . . . Parts Built . | . . . Authchips . | . . . Time . | . . . Total Part Build Rating . | . . . Part Studies Acquired . | . . . Parts Repaired . | . . . Time . | . . . Parts Recycled . | . . . Recycled Matter . | . . . Retrieved Matter . | . . . Retrieved Components 10 | . 10 . Parts Scanalyzed . | . . . Part Schematics Acquired . | . . . Parts Damaged . | . . . Bothacking | -11 -10 -10 ------------ Run | Yrd Mat Sub Used RIF Installer . | . . . Robots Hacked . | . . . Non-combat . | . . . Combat . | . . . Robot Hacks Applied . | . . . Relay Couplers Released . | . . . Fabnet Peak Effective % . | . . . Robots Rewired . | . . . Allies Hacked . | . . . Hacks Repelled . | . . . Allies | -11 -10 -10 -------- Run | Yrd Mat Sub Total Allies 1 | . 1 . Largest Group 1 | . 1 1 Highest-Rated Group 10 | . 10 10 Highest-Rated Ally 10 | . 10 10 Total Orders . | . . . Ally Attacks . | . . . Total Damage . | . . . Kills . | . . . Allies Corrupted . | . . . Allies Melted . | . . . Intel | -11 -10 -10 ------- Run | Yrd Mat Sub Active Infowar (turns) . | . . . Robot Analysis Total . | . . . Derelict Logs Recovered . | . . . Drone Launches . | . . . Drone Recoveries . | . . . Exploration | -11 -10 -10 ------------- Run | Yrd Mat Sub Turns Passed 1981 | . 1926 55 Spaces Moved 1240 | 1 1222 17 Core . | . . . Treads 348 | . 331 17 Legs 823 | 1 822 . Wheels 69 | . 69 . Hover . | . . . Flight . | . . . Fastest Speed 100 | 120 100 160 Average Speed 130 | 120 129 160 Slowest Speed 160 | 120 160 160 Overloaded Moves . | . . . Propulsion Burnouts . | . . . Robots Hopped . | . . . Potential Cave-ins . | . . . Cave-ins Triggered . | . . . Exploration Rate (%) 28 | 2 82 2 Regions Visited 2 Branch Regions 1 Pre-discovered Areas 3 | . 3 . Known Exits Taken 1 | . 1 . Unknown Exits Taken 1 | 1 . . Scrap Searched . | . . . Spaces Dug . | . . . Terrain Destroyed . | . . . Melee . | . . . Projectile . | . . . AOE . | . . . Terrain Rammed . | . . . Walls Destroyed . | . . . Machines Disabled . | . . . Actions | -11 -10 -10 --------- Run | Yrd Mat Sub Total 1459 | . 1431 28 Wait 87 | . 87 . Move 1238 | . 1221 17 Hop . | . . . Pick Up 18 | . 18 . Fast Attach . | . . . Attach 2 | . 1 1 Detach . | . . . Swap 14 | . 13 1 Drop 13 | . 13 . Fire 79 | . 70 9 Melee . | . . . Ram . | . . . Kick 5 | . 5 . Crush 3 | . 3 . Escape Stasis . | . . . Rewire . | . . . Trap . | . . . Miscellaneous . | . . . Route ------- -11/Scrapyard -10/Materials (discovered 6 exits: [*Mat x3] / [*Min x2] / *Sub) -10/Subcaves History --------- Turn | Location | Event 1 | -11/Scrapyard | Discovered new exit (range 0) 1 | -11/Scrapyard | Entered Materials 28 | -10/Materials | Discovered new exit (range 15) 43 | -10/Materials | Central database locked down 177 | -10/Materials | Discovered new exit (range 5) 250 | -10/Materials | Discovered new exit (range 14) 306 | -10/Materials | Build established: Mutant 1024 | -10/Materials | Discovered new exit (range 15) 1195 | -10/Materials | Discovered new exit (range 16) 1276 | -10/Materials | Loaded intel: 11 trap records 1394 | -10/Materials | Identified exit to Subcaves 1437 | -10/Materials | Learned Storage security intel 1509 | -10/Materials | Learned Storage trap positions 1558 | -10/Materials | Learned 2 Storage zone layouts 1927 | -10/Materials | Entered Subcaves 1927 | -10/Subcaves | Accompanied by 1 ally 1928 | -10/Subcaves | Approached by a straggling Scientist 1941 | -10/Subcaves | Ambushed by Subdwellers from Twisted Machinery 1946 | -10/Subcaves | Core integrity fell below 50% 1977 | -10/Subcaves | Core integrity fell below 20% 1982 | -10/Subcaves | Destroyed by OG-3CK(R) with Subdweller Laser Last Messages --------------- 01928_ IY-AF3(c): "Thank the algorithms! I was beginning to lose hope I'd never make it past all the Subs lurking out here." 01931_ IY-AF3(c): "Hey, let me tag along and I can get us both out of this nasty situation. At least I think I can... The group I got separated from was talking about a shortcut back to the UFD." 01940_ Technician 1a destroyed. 01941_ R8-WAF(R) emerges from the Twisted Machinery. 01944_ IY-AF3(c) destroyed. 01958_ R8-WAF(R) destroyed. 01967_ System corrupted: Component data lost. 01970_ OG-3CK(R) affixes Scrap Shield Fragment to Scrap Shield. 01971_ Shield Generator destroyed. 01978_ Subatomizers dissect the Hover Unit. 01978_ Shotgun destroyed. 01978_ Lgt. Treads destroyed. Map ----- +----------------------------------------------------+ | ?????????????????????????????????????????? | | ?????????????????????????????????????????? | | ?????????????????????????????????????????? | | ?????????????????????????????????????????? | | ?????????????????????????????????????????? | | ?????????????????????????????????????????? | | ?????????????????????????????????????????? | | ?????????????????????????????????????????? | | ?????????????????????????????????????????? | | ?????????????????????????????????????????? | | ?????????????????????????????????????????? | | ?????????????????????????????????????????? | | ?????????????????????????????????????????? | | ?????????????????????????????????????????? | | ???????????????????????????##????????????? | | ?????????????????????????#" #????????????? | | ??????????????##???????##" #????????????? | | ??????????????# ##???##"" #????????????? | | ??????????????# ##?##" " #????????????? | | ??????????????# ###" """#?????????????? | | ??????????????# !" """#??????????????? | | ???????????????# R% ""#??????????????? | | ??????????????## RR=* "#??????????????? | | ??????????????# R% ##??????????????? | | ??????????????# ## ##??????????????? | | ??????????????# @### #??????????????? | | ?????????????##;###?# #?????????????? | | ?????????????# ##??# #????????????? | | ?????????????###???# "??????????? | | ???????????????????# """ #????????? | | ???????????????????# ## "##????????? | | ??????????????????? ##?# "##?????????? | | ??????????????????? ????" ##??????????? | | ?????????????????? "?????" #???????????? | | ??????????????????## "?????" #???????????? | | ???????????????????# "??????" ???????????? | | ???????????????????##????????" ??????????? | | ??????????????????????????????# ?????????? | | ?????????????????????????????????????????? | | ?????????????????????????????????????????? | | ?????????????????????????????????????????? | | ?????????????????????????????????????????? | | ?????????????????????????????????????????? | | ?????????????????????????????????????????? | | ?????????????????????????????????????????? | | ?????????????????????????????????????????? | | ?????????????????????????????????????????? | | ?????????????????????????????????????????? | | ?????????????????????????????????????????? | | ?????????????????????????????????????????? | +----------------------------------------------------+ Best States ------------- Heat Dissipation 39 Energy Generation 12 Energy Capacity 265 Matter Stores 300 Matter Capacity 300 Sight Range 16 Terrain Scan Density 10 Evasion (%) 55 Recoil Reduction 2 Item Schematics ----------------- None Robot Schematics ------------------ None Fabricated ------------ Nothing Repaired ---------- Nothing Studied --------- None Alien Tech Used ----------------- None Achievements -------------- None Challenges ------------ None Game ------ Seed SubdwellerShadingRailcannon Manual? 0 Play Time 00:09:54 Cumulative 146.0 hours Start 2026.09.07 @ 17:22:12 End 2026.09.07 @ 17:31:26 Sessions 1 Manual Loads 0 Difficulty Rogue Special Mode None Game No. 90 Rogue 89 Adventurer 1 Explorer 0 Win Type - Total 10 Types 4/2/1/1/0/0/0/1/0/1 Lore% 61 Gallery% 69 Achievement% 68 Wizard Run 0 Options --------- Layout 1 ASCII 0 Keyboard 0 Movement Numpad Keybinds 0 Fullscreen 1 Font 32/SmallcapsGlow Map View 50x35 Zoom Use 0% Tactical HUD 1 Map Filters NONE Filters NONE Steam 1 RUN: 1833bbd9-028d-40bc-becc-3a9707122cc7